bitfinex-derivatives/quotes_BNBF0:USTF0_20250807
["timestamp","ask_amount","ask_price","bid_price","bid_amount"]
[1754599784908,0.86100617,781.8,781.46,0.994]
[1754599785103,0.86100617,781.79,781.46,1.85580246]
[1754599785306,0.86100617,781.78,781.46,0.994]
[1754599785509,0.86100617,781.77,781.46,0.994]
[1754599785803,0.772,781.88,781.46,0.994]
[1754599786005,0.86080134,781.87,781.46,0.994]
[1754599786307,0.86080134,781.86,781.46,0.994]
[1754599786508,0.86080134,781.85,781.46,0.994]
[1754599786706,0.86080134,781.84,781.46,0.994]
[1754599786910,0.86080134,781.83,781.46,0.994]
[1754599787109,0.86080134,781.82,781.46,0.994]
[1754599787311,0.86080134,781.81,781.46,0.994]
[1754599787508,0.86080134,781.8,781.46,0.994]
[1754599787707,0.772,781.88,781.46,0.994]
[1754599788009,0.772,781.88,781.48,0.86180246]
[1754599788211,0.772,781.88,781.47,0.86180246]
[1754599789511,0.86012774,781.87,781.47,0.86180246]
[1754599789706,0.86012774,781.86,781.47,0.86180246]
[1754599789909,0.772,781.88,781.47,0.86180246]
[1754599790110,0.8601225,781.87,781.47,0.86180246]
[1754599790307,0.772,781.88,781.47,0.86180246]
[1754599790612,0.86001887,781.87,781.47,0.86180246]
[1754599790811,0.86001887,781.86,781.47,0.86180246]
[1754599791112,0.772,781.88,781.47,0.86180246]
[1754599791411,0.86001887,781.87,781.46,1.85580246]
[1754599791612,0.772,781.88,781.46,1.85580246]
[1754599791812,0.8599274,781.87,781.46,1.85580246]
[1754599792012,0.772,781.88,781.46,1.85580246]
[1754599792211,0.8599274,781.87,781.46,1.85580246]
[1754599792509,0.772,781.88,781.46,1.85580246]
[1754599792709,0.85984653,781.87,781.46,1.85580246]
[1754599792914,0.772,781.88,781.46,1.85580246]
[1754599793107,0.85984653,781.87,781.46,1.85580246]
[1754599793310,0.772,781.88,781.46,0.994]
[1754599794611,0.85971357,781.87,781.46,0.994]
[1754599794816,0.772,781.88,781.46,0.994]
[1754599795013,0.85971357,781.87,781.46,0.994]
[1754599795213,0.772,781.88,781.46,0.994]
[1754599795716,0.85965575,781.87,781.46,0.994]
[1754599796014,0.772,781.88,781.46,0.994]
[1754599796213,0.85965575,781.87,781.46,0.994]
[1754599796412,0.772,781.88,781.46,0.994]
[1754599796916,0.85960552,781.87,781.46,0.994]
[1754599797113,0.772,781.88,781.46,0.994]
[1754599798412,0.85952169,781.87,781.46,0.994]
[1754599798717,0.772,781.88,781.46,0.994]
[1754599798914,0.85952169,781.87,781.46,0.994]
[1754599799114,0.772,781.88,781.46,0.994]
[1754599801314,0.86068664,782.12,781.46,0.994]
[1754599801516,0.85934859,782.11,781.46,0.994]
[1754599801716,0.85934859,782.1,781.46,0.994]
[1754599801915,0.85934859,782.09,781.46,0.994]
[1754599802119,0.85934859,782.08,781.46,0.994]
[1754599802416,0.85932108,782.07,781.46,0.994]
[1754599802622,0.85932108,782.06,781.46,0.994]
[1754599802916,0.85932108,782.05,781.46,0.994]
[1754599803121,0.85932108,782.04,781.46,0.994]
[1754599803317,0.85932108,782.03,781.46,0.994]
[1754599803618,0.85932108,782.02,781.46,0.994]
[1754599803821,0.85932108,782.01,781.46,0.994]
[1754599805418,0.813,782.02,781.46,0.994]
[1754599805618,0.85941133,782.01,781.46,0.994]
[1754599805820,0.85941133,782.0,781.46,0.994]
[1754599806020,0.85941133,781.99,781.46,0.994]
[1754599806217,0.85941133,781.98,781.46,0.994]
[1754599806422,0.85941133,781.97,781.46,0.994]
[1754599806623,0.85943082,781.96,781.46,0.994]
[1754599806820,0.85943082,781.95,781.46,0.994]
[1754599807019,0.85943082,781.94,781.46,0.994]
[1754599807224,0.85943082,781.93,781.46,0.994]
[1754599807423,0.85943082,781.92,781.46,0.994]
[1754599807619,0.85943082,781.91,781.46,0.994]
[1754599807825,0.85943082,781.9,781.46,0.994]
[1754599808025,0.813,782.02,781.46,0.994]
[1754599808026,0.85943082,781.89,781.46,0.994]
[1754599808226,0.85943082,781.88,781.46,0.994]
[1754599808428,0.813,782.02,781.46,0.994]
[1754599808726,0.85947812,782.01,781.46,0.994]
[1754599808927,0.85947812,782.0,781.46,0.994]
[1754599809127,0.85947812,781.99,781.46,0.994]
[1754599809427,0.85947812,781.98,781.46,0.994]
[1754599809627,0.85947812,781.97,781.41,0.887]
[1754599809825,0.85947812,781.96,781.41,0.887]
[1754599810024,0.85947812,781.95,781.41,0.887]
[1754599810223,0.85947812,781.94,781.41,0.887]
[1754599810425,0.85947812,781.93,781.41,0.887]
[1754599810626,0.85947812,781.92,781.41,0.887]
[1754599810825,0.85947812,781.91,781.41,0.887]
[1754599811128,0.85947812,781.9,781.41,0.887]
[1754599811328,0.85947812,781.89,781.39,0.679]
[1754599811526,0.85947812,781.88,781.39,0.679]
[1754599811728,0.85947812,781.87,781.39,0.679]
[1754599811928,0.813,782.02,781.39,0.679]
[1754599811929,0.85947812,781.86,781.39,0.679]
[1754599812126,0.85947812,781.85,781.39,0.679]
[1754599812327,0.85947812,781.84,781.39,0.679]
[1754599812529,0.85947812,781.83,781.39,0.679]
[1754599812730,0.85947812,781.82,781.39,0.679]
[1754599812928,0.85947812,781.81,781.39,0.679]
[1754599813127,0.85947812,781.8,781.39,0.679]
[1754599813327,0.813,782.02,781.39,0.679]
[1754599813529,0.85960931,782.01,781.4,1.04]
[1754599813728,0.85960931,782.0,781.4,1.825]
[1754599813934,0.85960931,781.99,781.4,1.825]
[1754599814229,0.813,782.02,781.4,1.825]
[1754599814629,0.85963206,782.01,781.4,1.825]
[1754599814832,0.85963206,782.0,781.4,1.825]
[1754599815029,0.85963206,781.99,781.4,1.825]
[1754599815332,0.85963206,781.98,781.4,1.825]
[1754599815528,0.85963206,781.97,781.4,1.825]
[1754599815727,0.85965967,781.96,781.4,1.825]
[1754599815932,0.85965967,781.95,781.4,1.825]
[1754599816227,0.813,782.02,781.4,1.825]
[1754599816228,0.85965967,781.94,781.4,1.825]
[1754599816428,0.85965967,781.93,781.4,1.825]
[1754599816727,0.85965967,781.92,781.4,1.825]
[1754599816928,0.85965967,781.91,781.4,1.825]
[1754599817131,0.85965967,781.9,781.4,1.825]
[1754599817327,0.85965967,781.89,781.4,1.825]
[1754599817531,0.85965967,781.88,781.4,1.825]
[1754599817727,0.813,782.02,781.4,1.825]
[1754599817728,0.85965967,781.87,781.4,1.825]
[1754599817930,0.85965967,781.86,781.4,1.825]
[1754599818132,0.85965967,781.85,781.4,1.825]
[1754599818334,0.85965967,781.84,781.4,1.825]
[1754599818533,0.85965967,781.83,781.4,1.825]
[1754599818733,0.85965967,781.82,781.4,1.825]
[1754599819028,0.85965967,781.81,781.4,1.825]
[1754599819235,0.85965967,781.8,781.4,1.825]
[1754599819432,0.85965967,781.79,781.4,1.825]
[1754599819630,0.85965967,781.78,781.4,1.825]
[1754599819833,0.85965967,781.77,781.4,1.825]
[1754599820033,0.85965967,781.76,781.4,1.825]
[1754599820329,0.86068664,781.99,781.4,1.825]
[1754599820632,0.8596441,781.98,781.4,1.825]
[1754599820830,0.8596441,781.97,781.4,1.825]
[1754599821033,0.8596441,781.96,781.4,1.825]
[1754599821230,0.8596441,781.95,781.4,1.825]
[1754599821534,0.8596441,781.94,781.41,0.693]
[1754599821834,0.8596441,781.93,781.41,0.693]
[1754599822032,0.8596441,781.92,781.41,0.693]
[1754599822233,0.8596441,781.91,781.41,0.693]
[1754599822431,0.8596441,781.9,781.41,0.693]
[1754599822730,0.8596441,781.89,781.41,0.693]
[1754599822934,0.8596441,781.88,781.41,0.693]
[1754599823132,0.8596441,781.87,781.41,0.693]
[1754599823335,0.8596441,781.86,781.41,0.693]
[1754599823732,0.85963918,781.85,781.41,0.693]
[1754599823930,0.85963918,781.84,781.41,0.693]
[1754599824132,0.85963918,781.83,781.41,0.693]
[1754599824335,0.813,782.02,781.41,0.693]
[1754599824636,0.85964919,782.01,781.41,0.693]
[1754599824832,0.85964919,782.0,781.41,0.693]
[1754599825031,0.85964919,781.99,781.41,0.693]
[1754599825331,0.85964919,781.98,781.41,0.693]
[1754599825531,0.85964919,781.97,781.41,0.693]
[1754599825735,0.85964919,781.96,781.41,0.693]
[1754599826036,0.85964919,781.95,781.41,0.693]
[1754599826235,0.85964919,781.94,781.41,0.693]
[1754599826430,0.85964919,781.93,781.41,0.693]
[1754599826634,0.85964919,781.92,781.41,0.693]
[1754599826834,0.85964919,781.91,781.41,0.693]
[1754599827035,0.85964919,781.9,781.41,0.693]
[1754599827232,0.85964919,781.89,781.41,0.693]
[1754599827431,0.813,782.02,781.41,0.693]
[1754599827735,0.85966138,782.01,781.41,0.693]
[1754599828031,0.85966138,782.0,781.41,0.693]
[1754599828231,0.85966138,781.99,781.41,0.693]
[1754599828431,0.813,782.02,781.41,0.693]
[1754599828432,0.85966138,781.98,781.41,0.693]
[1754599828636,0.85966138,781.97,781.41,0.693]
[1754599828833,0.85966138,781.96,781.41,0.693]
[1754599829034,0.85966138,781.95,781.41,0.693]
[1754599829233,0.85966138,781.94,781.41,0.693]
[1754599829438,0.85966138,781.93,781.41,0.693]
[1754599829638,0.85969602,781.92,781.41,0.693]
[1754599829935,0.85969602,781.91,781.41,0.693]
[1754599830139,0.85969602,781.9,781.41,0.693]
[1754599830339,0.85969602,781.89,781.41,0.693]
[1754599830539,0.85969602,781.88,781.41,0.693]
[1754599830841,0.85969602,781.87,781.41,0.693]
[1754599831040,0.85969602,781.86,781.41,0.693]
[1754599831237,0.85969602,781.85,781.41,0.693]
[1754599831442,0.85969602,781.84,781.41,0.693]
[1754599831642,0.85969602,781.83,781.41,0.693]
[1754599831839,0.85969602,781.82,781.41,0.693]
[1754599832040,0.85872689,781.81,781.41,0.693]
[1754599832344,1.67368664,782.02,781.41,0.693]
[1754599832540,0.85873187,782.01,781.41,0.693]
[1754599832738,1.67368664,782.02,781.41,0.693]
[1754599832940,0.85873187,782.01,781.41,0.693]
[1754599833145,0.85873187,782.0,781.41,0.693]
[1754599833446,0.85873187,781.99,781.41,0.693]
[1754599833642,0.85873187,781.98,781.41,0.693]
[1754599833845,0.85873187,781.97,781.41,0.693]
[1754599834144,0.85873187,781.96,781.41,0.693]
[1754599834342,0.85873187,781.95,781.41,0.693]
[1754599834545,0.85873187,781.94,781.41,0.693]
[1754599834747,0.85873187,781.93,781.41,0.693]
[1754599834941,0.85873187,781.92,781.41,0.693]
[1754599835146,0.85873187,781.91,781.41,0.693]
[1754599835342,0.85873187,781.9,781.41,0.693]
[1754599835645,0.813,782.02,781.41,0.693]
[1754599835646,0.85873187,781.89,781.41,0.693]
[1754599835948,0.85878669,781.88,781.41,0.693]
[1754599836142,0.85878669,781.87,781.41,0.693]
[1754599836450,0.85878669,781.86,781.42,0.85894503]
[1754599836647,0.85878669,781.85,781.42,0.85894503]
[1754599836851,0.85878669,781.84,781.42,0.85894503]
[1754599837151,0.85878669,781.83,781.42,0.85894503]
[1754599837350,0.85878669,781.82,781.44,0.85894503]
[1754599837651,0.813,782.02,781.42,0.85894503]
[1754599837849,0.85878649,782.01,781.42,0.85894503]
[1754599838050,0.85878649,782.0,781.42,0.85894503]
[1754599838247,0.85878649,781.99,781.42,0.85894503]
[1754599838448,0.85878649,781.98,781.42,0.85894503]
[1754599838647,0.85878649,781.97,781.42,0.85894503]
[1754599838848,0.85878649,781.96,781.42,0.85894503]
[1754599839052,0.85878649,781.95,781.42,0.85894503]
[1754599839253,0.85878649,781.94,781.43,0.85894503]
[1754599839448,0.85878649,781.93,781.43,0.85894503]
[1754599839652,0.813,782.02,781.43,0.85894503]
[1754599839653,0.85878649,781.92,781.43,0.85894503]
[1754599839849,0.85878649,781.91,781.43,0.85894503]
[1754599840152,0.85878649,781.9,781.43,0.85894503]
[1754599840352,0.85878649,781.89,781.43,0.85894503]
[1754599840553,0.85878649,781.88,781.43,0.85894503]
[1754599840855,0.85878649,781.87,781.43,0.85894503]
[1754599841054,0.85881713,781.86,781.43,0.85894503]
[1754599841353,0.85881713,781.85,781.43,0.85894503]
[1754599841553,0.85881713,781.84,781.43,0.85894503]
[1754599841754,0.813,782.02,781.43,0.85894503]
[1754599842049,0.85882848,782.01,781.43,0.85894503]
[1754599842251,0.85882848,782.0,781.43,0.85894503]
[1754599842449,0.813,782.02,781.41,1.55194503]
[1754599842450,0.85882848,781.99,781.41,1.55194503]
[1754599842650,0.85882848,781.98,781.41,1.55194503]
[1754599842854,0.85882848,781.97,781.41,1.55194503]
[1754599843057,0.85882848,781.96,781.41,1.55194503]
[1754599843252,0.85882848,781.95,781.41,1.55194503]
[1754599843456,0.85882848,781.94,781.41,1.55194503]
[1754599843653,0.85882848,781.93,781.41,1.55194503]
[1754599843954,0.85882848,781.92,781.41,1.55194503]
[1754599844154,0.85882848,781.91,781.41,1.55194503]
[1754599844353,0.85882848,781.9,781.41,1.55194503]
[1754599844557,0.85882848,781.89,781.41,1.55194503]
[1754599844756,0.85882848,781.88,781.41,1.55194503]
[1754599844956,0.85882848,781.87,781.41,1.55194503]
[1754599845160,0.85882848,781.86,781.41,1.55194503]
[1754599845360,0.85882848,781.85,781.41,1.55194503]
[1754599845562,0.85882848,781.84,781.41,0.693]
[1754599845763,0.85882848,781.83,781.41,1.55194503]
[1754599846061,0.85882848,781.82,781.41,1.55194503]
[1754599846258,0.85882848,781.81,781.41,1.55194503]
[1754599846464,0.86068664,782.01,781.41,1.55194503]
[1754599846658,0.8588628,782.0,781.41,1.55194503]
[1754599846858,0.8588628,781.99,781.42,1.055]
[1754599847163,0.8588628,781.98,781.42,1.055]
[1754599847465,0.8588628,781.97,781.43,0.85894503]
[1754599848062,0.732,781.96,781.43,0.85894503]
[1754599848262,0.8588628,781.95,781.43,0.85894503]
[1754599850161,0.8588628,781.95,781.44,0.85894503]
[1754599850564,0.732,781.96,781.44,0.85894503]
[1754599850761,0.85898884,781.95,781.44,0.85894503]
[1754599851064,0.85898884,781.94,781.44,0.85894503]
[1754599851266,0.85898884,781.93,781.44,0.85894503]
[1754599851461,0.85898884,781.92,781.44,0.85894503]
[1754599851662,0.85898884,781.91,781.44,0.85894503]
[1754599851964,0.85898884,781.9,781.44,0.85894503]
[1754599852162,0.85898884,781.89,781.44,0.85894503]
[1754599852462,0.85898884,781.88,781.44,0.85894503]
[1754599852660,0.732,781.96,781.44,0.85894503]
[1754599852661,0.85898884,781.87,781.44,0.85894503]
[1754599852863,0.85898884,781.86,781.44,0.85894503]
[1754599853065,0.85898884,781.85,781.44,0.85894503]
[1754599853364,0.85898884,781.84,781.42,1.055]
[1754599853562,0.85898884,781.83,781.44,0.86112992]
[1754599853763,0.85898884,781.82,781.44,0.86112992]
[1754599853965,0.85898884,781.81,781.44,0.86112992]
[1754599854166,0.732,781.96,781.44,0.86112992]
[1754599854167,0.85898884,781.8,781.44,0.86112992]
[1754599854366,0.85898884,781.79,781.45,0.86112992]
[1754599854562,1.59360734,781.96,781.45,0.86112992]
[1754599854769,0.85907554,781.95,781.45,0.86112992]
[1754599854964,0.85907554,781.94,781.45,0.86112992]
[1754599855164,0.85907554,781.93,781.45,0.86112992]
[1754599855364,0.85907554,781.92,781.45,0.86112992]
[1754599855565,0.85907554,781.91,781.45,0.86112992]
[1754599855868,0.85907554,781.9,781.45,0.86112992]
[1754599856068,0.85907554,781.89,781.45,0.86112992]
[1754599856265,0.85907554,781.88,781.46,0.86112992]
[1754599856565,0.85907554,781.87,781.46,0.86112992]
[1754599856768,0.85907554,781.86,781.46,0.86112992]
[1754599856968,0.85907554,781.85,781.46,0.86112992]
[1754599857271,0.85907554,781.84,781.46,0.86112992]
[1754599857468,0.85907554,781.83,781.46,0.86112992]
[1754599857671,0.85907554,781.82,781.48,0.86112992]
[1754599857866,0.85907554,781.81,781.48,0.86112992]
[1754599858068,0.732,781.96,781.48,0.86112992]
[1754599858270,0.8591066,781.95,781.48,0.86112992]
[1754599858571,0.8591066,781.94,781.48,0.86112992]
[1754599858770,0.8591066,781.93,781.48,0.86112992]
[1754599859067,0.8591066,781.92,781.46,0.86112992]
[1754599859270,0.8591066,781.91,781.46,0.86112992]
[1754599859467,0.732,781.96,781.46,0.86112992]
[1754599859468,0.8591066,781.9,781.46,0.86112992]
[1754599859673,0.85912931,781.89,781.46,0.86112992]
[1754599859873,0.85912931,781.88,781.46,0.86112992]
[1754599860073,0.85912931,781.87,781.46,0.86112992]
[1754599860373,0.85912931,781.86,781.46,0.86112992]
[1754599860569,0.85912931,781.85,781.46,0.86112992]
[1754599860875,0.85912931,781.84,781.46,0.86112992]
[1754599861068,0.85912931,781.83,781.46,0.86112992]
[1754599861273,0.860225,781.82,781.46,0.86112992]
[1754599861473,0.732,781.96,781.46,0.86112992]
[1754599861670,0.86024351,781.95,781.46,0.86112992]
[1754599861874,0.86024351,781.94,781.46,0.86112992]
[1754599862077,0.86024351,781.93,781.43,0.86112992]
[1754599862275,0.86024351,781.92,781.43,0.86112992]
[1754599862572,0.86024351,781.91,781.43,0.86112992]
[1754599862776,0.86024351,781.9,781.43,0.86112992]
[1754599862976,0.86024351,781.89,781.43,0.86112992]
[1754599863177,0.86024351,781.88,781.43,0.86112992]
[1754599863378,0.86024351,781.87,781.43,0.86112992]
[1754599863575,0.86024351,781.86,781.43,0.86112992]
[1754599863875,0.86024351,781.85,781.43,0.86112992]
[1754599864074,0.86160734,782.06,781.43,0.86112992]
[1754599864276,0.86022548,782.05,781.43,0.86112992]
[1754599864473,0.86160734,782.06,781.43,0.86112992]
[1754599864474,0.86022548,782.04,781.43,0.86112992]
[1754599864774,0.86022548,782.03,781.43,0.86112992]
[1754599865077,0.86022548,782.02,781.43,0.86112992]
[1754599865276,0.86022548,782.01,781.43,0.86112992]
[1754599865474,0.86022548,782.0,781.43,0.86112992]
[1754599865674,0.86022548,781.99,781.43,0.86112992]
[1754599865979,0.86022548,781.98,781.43,0.86112992]
[1754599866177,0.86022548,781.97,781.43,0.86112992]
[1754599866377,0.86022548,781.96,781.43,0.86112992]
[1754599866577,0.86022548,781.95,781.43,0.86112992]
[1754599866777,0.86022548,781.94,781.43,0.86112992]
[1754599866975,0.86022548,781.93,781.43,0.86112992]
[1754599867178,0.756,782.0,781.43,0.86112992]
[1754599867179,0.86022548,781.92,781.43,0.86112992]
[1754599867379,0.86022548,781.91,781.43,0.86112992]
[1754599867677,0.86022548,781.9,781.43,0.86112992]
[1754599867878,0.8601744,781.89,781.43,0.86112992]
[1754599868077,0.8601744,781.88,781.43,0.86112992]
[1754599868275,0.8601744,781.87,781.43,0.86112992]
[1754599868473,0.8601744,781.86,781.43,0.86112992]
[1754599868674,0.8601744,781.85,781.44,0.86112992]
[1754599868878,0.756,782.0,781.44,0.86112992]
[1754599869080,0.86015885,781.99,781.44,0.86112992]
[1754599869278,0.86015885,781.98,781.44,0.86112992]
[1754599869477,0.86015885,781.97,781.44,0.86112992]
[1754599869676,0.86015885,781.96,781.44,0.86112992]
[1754599869877,0.86015885,781.95,781.44,0.86112992]
[1754599870180,0.86015885,781.94,781.44,0.86112992]
[1754599870480,0.86015885,781.93,781.45,1.077]
[1754599870676,0.86015885,781.92,781.45,1.077]
[1754599870879,0.86013688,781.91,781.45,1.077]
[1754599871078,0.86013688,781.9,781.45,1.077]
[1754599871281,0.86013688,781.89,781.45,1.077]
[1754599871479,0.86013688,781.88,781.45,1.077]
[1754599871680,0.86013688,781.87,781.45,1.077]
[1754599871878,0.86013688,781.86,781.47,0.86112992]
[1754599872083,0.86013688,781.85,781.47,0.86112992]
[1754599872279,0.86013688,781.84,781.47,0.86112992]
[1754599872483,0.86013688,781.83,781.47,0.86112992]
[1754599872681,0.86013688,781.82,781.47,0.86112992]
[1754599872982,1.61760734,782.0,781.47,0.86112992]
[1754599873182,0.86013029,781.99,781.47,0.86112992]
[1754599873386,0.86013029,781.98,781.47,0.86112992]
[1754599873583,0.86013029,781.97,781.47,0.86112992]
[1754599873783,0.86013029,781.96,781.47,0.86112992]
[1754599873981,0.86013029,781.95,781.47,0.86112992]
[1754599874182,0.86013029,781.94,781.47,0.86112992]
[1754599874381,0.86013029,781.93,781.47,0.86112992]
[1754599874583,0.86013029,781.92,781.47,0.86112992]
[1754599874787,0.86013029,781.91,781.47,0.86112992]
[1754599874983,0.86013029,781.9,781.47,0.86112992]
[1754599875184,0.86013029,781.89,781.47,0.86112992]
[1754599875385,0.86013029,781.88,781.47,0.86112992]
[1754599875585,0.86013029,781.87,781.47,0.86112992]
[1754599875785,0.86013029,781.86,781.47,0.86112992]
[1754599876089,0.86013029,781.85,781.47,0.86112992]
[1754599876385,0.86013029,781.84,781.48,0.86112992]
[1754599876586,0.86013029,781.83,781.48,0.86112992]
[1754599876888,0.86019779,781.82,781.48,0.86112992]
[1754599877087,0.86027016,781.81,781.48,0.86112992]
[1754599877290,0.86160734,781.99,781.48,0.86112992]
[1754599877587,0.86160734,781.97,781.49,0.86112992]
[1754599877787,0.86027305,781.96,781.49,0.86112992]
[1754599877991,0.86027305,781.95,781.49,0.86112992]
[1754599878188,0.86027305,781.94,781.5,0.86112992]
[1754599878386,0.86027305,781.93,781.5,0.86112992]
[1754599878590,0.86027305,781.92,781.5,0.86112992]
[1754599878794,0.86160734,781.97,781.5,0.86112992]
[1754599878795,0.86027305,781.91,781.5,0.86112992]
[1754599878989,0.86027305,781.9,781.5,0.86112992]
[1754599879189,0.86027305,781.89,781.5,0.86112992]
[1754599879390,0.86027305,781.88,781.5,0.86112992]
[1754599879589,0.86027305,781.87,781.5,0.86112992]
[1754599879790,0.86027305,781.86,781.5,0.86112992]
[1754599879988,0.86040108,781.85,781.5,0.86112992]
[1754599880188,0.86040108,781.84,781.5,0.86112992]
[1754599880386,0.86040108,781.83,781.5,0.86112992]
[1754599880587,0.86040108,781.82,781.5,0.86112992]
[1754599880788,0.86040108,781.81,781.5,0.86112992]
[1754599881092,0.86040108,781.8,781.5,0.86112992]
[1754599881291,0.74,781.93,781.45,1.077]
[1754599881292,0.86040108,781.79,781.51,0.86112992]
[1754599881492,0.74,781.93,781.51,0.86112992]
[1754599881692,0.860543,781.92,781.51,0.86112992]
[1754599881889,0.860543,781.91,781.51,0.86112992]
[1754599882093,0.860543,781.9,781.45,1.077]
[1754599882291,0.860543,781.89,781.45,1.077]
[1754599882493,0.860543,781.88,781.45,1.077]
[1754599882693,0.860543,781.87,781.45,1.077]
[1754599882993,0.860543,781.86,781.45,1.077]
[1754599883190,0.860543,781.85,781.45,1.077]
[1754599883390,0.860543,781.84,781.45,1.077]
[1754599883594,0.860543,781.83,781.45,1.077]
[1754599883894,0.860543,781.82,781.45,1.077]
[1754599884092,0.860543,781.81,781.45,1.077]
[1754599884298,0.860543,781.8,781.45,1.077]
[1754599884497,0.860543,781.79,781.45,1.93812992]
[1754599884694,0.860543,781.78,781.45,1.93812992]
[1754599884998,0.860543,781.77,781.46,0.86112992]
[1754599885205,0.74,781.93,781.46,0.86112992]
[1754599885398,0.86069009,781.92,781.45,1.077]
[1754599885601,0.86069009,781.91,781.45,1.077]
[1754599885905,0.860684,781.9,781.45,1.077]
[1754599886099,0.860684,781.89,781.45,1.077]
[1754599886297,0.860684,781.88,781.45,1.077]
[1754599886500,0.860684,781.87,781.45,1.077]
[1754599886704,0.860684,781.86,781.45,1.077]
[1754599886899,0.860684,781.85,781.45,1.077]
[1754599887102,0.860684,781.84,781.45,1.077]
[1754599887298,0.860684,781.83,781.45,1.077]
[1754599887502,0.860684,781.82,781.45,1.077]
[1754599887704,0.860684,781.81,781.45,1.077]
[1754599887998,0.860684,781.8,781.45,1.077]
[1754599888205,0.74,781.93,781.45,1.077]
[1754599888403,0.86068349,781.92,781.45,1.077]
[1754599888705,0.86068349,781.91,781.45,1.077]
[1754599889003,0.86068349,781.9,781.45,1.077]
[1754599889201,0.74,781.93,781.45,1.077]
[1754599889202,0.86068349,781.89,781.45,1.077]
[1754599889405,0.86068349,781.88,781.45,1.077]
[1754599889705,0.86068349,781.87,781.45,1.077]
[1754599889904,0.86068349,781.86,781.45,1.077]
[1754599890103,0.74,781.93,781.45,1.077]
[1754599890104,0.86068349,781.85,781.45,1.077]
[1754599890304,0.74,781.93,781.45,1.077]
[1754599890604,0.86065565,781.92,781.42,0.86112992]
[1754599890800,0.86065565,781.91,781.42,0.86112992]
[1754599891003,0.86065565,781.9,781.42,0.86112992]
[1754599891200,0.86065565,781.89,781.42,0.86112992]
[1754599891407,0.86065565,781.88,781.42,0.86112992]
[1754599891600,0.74,781.93,781.42,0.86112992]
[1754599891805,0.86048877,781.92,781.42,0.86112992]
[1754599892005,0.86048877,781.91,781.2,1.1355619]
[1754599892207,0.86048877,781.9,781.46,0.86214691]
[1754599892405,0.86048877,781.89,781.46,0.86214691]
[1754599892705,0.86048877,781.88,781.46,0.86214691]
[1754599893003,0.86048877,781.87,781.46,0.86214691]
[1754599893203,0.86048877,781.86,781.46,0.86214691]
[1754599893404,0.86048877,781.85,781.46,0.86214691]
[1754599893707,0.74,781.93,781.46,0.86214691]
[1754599893905,0.8604767,781.92,781.46,0.86214691]
[1754599894107,0.8604767,781.91,781.46,0.86214691]
[1754599894308,0.8604767,781.9,781.47,0.713]
[1754599894508,0.8604767,781.89,781.47,0.713]
[1754599894709,0.8604767,781.88,781.47,0.713]
[1754599895006,0.86047308,781.87,781.47,0.713]
[1754599895208,0.86047308,781.86,781.49,0.86214691]
[1754599895405,0.86047044,781.85,781.49,0.86214691]
[1754599895610,0.86047044,781.84,781.49,0.86214691]
[1754599895804,0.86047044,781.83,781.5,0.86214691]
[1754599896008,0.86047044,781.82,781.5,0.86214691]
[1754599896208,0.74,781.93,781.5,0.86214691]
[1754599896406,0.86046677,781.92,781.51,0.86214691]
[1754599896608,0.86046677,781.91,781.51,0.86214691]
[1754599896808,0.86046677,781.9,781.52,0.86214691]
[1754599897006,0.86046677,781.89,781.49,0.86214691]
[1754599897212,0.86046677,781.88,781.49,0.86214691]
[1754599897409,0.86046677,781.87,781.49,0.86214691]
[1754599897612,0.86046677,781.86,781.49,0.86214691]
[1754599897807,0.86046677,781.85,781.48,0.86214691]
[1754599898012,0.86046061,781.84,781.48,0.86214691]
[1754599898209,0.74,781.93,781.48,0.86214691]
[1754599898412,0.86045668,781.92,781.48,0.86214691]
[1754599898712,0.86045668,781.91,781.48,0.86214691]
[1754599898910,0.86045668,781.9,781.48,0.86214691]
[1754599899109,0.86045668,781.89,781.5,0.86214691]
[1754599899313,0.86045668,781.88,781.5,0.86214691]
[1754599899514,0.86045668,781.87,781.5,0.86214691]
[1754599899713,0.86045668,781.86,781.5,0.86214691]
[1754599899912,0.86045668,781.85,781.51,0.86214691]
[1754599900113,0.86045668,781.84,781.47,0.713]